bitfinex/quotes_SOLUSD_20260228
["timestamp","ask_amount","ask_price","bid_price","bid_amount"]
[1772286619023,0.28432314,80.273,80.204,2.3612744]
[1772286619207,2.52599159,80.274,80.23,25.68545098]
[1772286619412,25.68545098,80.27,80.23,25.68545098]
[1772286619708,25.68545098,80.27,80.22,25.68545098]
[1772286619908,43.59795213,80.279,80.23,25.68545098]
[1772286620115,43.60338361,80.269,80.23,25.68545098]
[1772286620311,25.68545098,80.26,80.22,25.68545098]
[1772286620504,43.60338361,80.269,80.23,25.68545098]
[1772286620709,12.4581096,80.269,80.23,25.68545098]
[1772286621224,2.52599159,80.292,80.25,25.68545098]
[1772286621527,25.68545098,80.29,80.25,25.68545098]
[1772286621828,25.68545098,80.26,80.22,25.68545098]
[1772286622028,43.59795213,80.279,80.231,12.46401017]
[1772286622227,12.45655775,80.279,80.24,25.68545098]
[1772286622618,43.59795213,80.279,80.24,25.68545098]
[1772286622923,43.59795213,80.279,80.231,2.3612744]
[1772286623123,25.68545098,80.27,80.22,28.04672538]
[1772286623425,25.68545098,80.27,80.23,25.68545098]
[1772286623820,25.68545098,80.26,80.212,2.3612744]
[1772286624022,12.45966184,80.259,80.221,12.46556387]
[1772286624240,12.45966184,80.259,80.23,25.68545098]
[1772286624529,12.45857523,80.266,80.231,2.3612744]
[1772286624720,12.4542307,80.294,80.26,25.68545098]
[1772286625026,12.4542307,80.294,80.25,25.68545098]
[1772286625027,25.68545098,80.29,80.25,25.68545098]
[1772286625229,12.4542307,80.294,80.26,25.68545098]
[1772286625614,12.4542307,80.294,80.242,2.3612744]
[1772286625840,25.68545098,80.28,80.24,25.68545098]
[1772286626136,12.45500628,80.289,80.25,25.68545098]
[1772286626431,25.68545098,80.28,80.24,25.68545098]
[1772286626940,3.69383402,80.314,80.23,12.46404269]
[1772286626941,25.68545098,80.31,80.27,25.68545098]
[1772286627117,25.68545098,80.29,80.251,2.3612744]
[1772286627326,2.52599159,80.299,80.251,2.3612744]
[1772286627632,25.68545098,80.29,80.251,2.3612744]
[1772286627826,25.68545098,80.29,80.23,12.46404269]
[1772286628026,25.68545098,80.29,80.241,2.3612744]
[1772286628229,25.68545098,80.29,80.25,28.04672538]
[1772286628428,0.28432314,80.294,80.251,2.3612744]
[1772286628637,12.4532297,80.301,80.261,2.3612744]
[1772286628837,25.68545098,80.3,80.261,2.3612744]
[1772286629012,12.4532297,80.301,80.26,25.68545098]
[1772286629738,25.68545098,80.27,80.231,2.3612744]
[1772286629926,25.68545098,80.26,80.221,2.3612744]
[1772286630241,25.68545098,80.26,80.223,2.3612744]
[1772286630737,12.4567748,80.278,80.24,25.68545098]
[1772286630945,12.4567748,80.278,80.222,43.62892971]
[1772286630946,25.68545098,80.27,80.222,12.46540849]
[1772286631161,12.4567748,80.278,80.24,25.68545098]
[1772286631440,25.68545098,80.29,80.24,25.68545098]
[1772286631638,5.36086188,80.321,80.222,43.62892971]
[1772286631639,2.52599159,80.33,80.271,2.3612744]
[1772286631814,25.68545098,80.32,80.28,25.68545098]
[1772286632011,25.68545098,80.32,80.271,2.3612744]
[1772286632012,25.68545098,80.31,80.271,2.3612744]
[1772286632256,25.68545098,80.31,80.272,12.45764401]
[1772286633046,2.52599159,80.32,80.28,25.68545098]
[1772286633214,25.68545098,80.31,80.272,12.45764401]
[1772286633414,28.21144257,80.32,80.272,43.60175403]
[1772286633615,25.68545098,80.32,80.281,2.3612744]
[1772286633844,25.68545098,80.3,80.26,25.68545098]
[1772286634027,25.68545098,80.3,80.252,12.46074864]
[1772286634341,25.68545098,80.3,80.214,62.54263623]
[1772286634342,25.68545098,80.27,80.225,2.3612744]
[1772286634634,25.68545098,80.27,80.231,2.3612744]
[1772286635018,43.58709323,80.299,80.221,12.46556387]
[1772286635019,25.68545098,80.26,80.221,12.46556387]
[1772286635216,25.68545098,80.26,80.216,2.3612744]
[1772286635414,25.68545098,80.26,80.173,62.53056997]
[1772286635415,25.68545098,80.26,80.22,28.04672538]
[1772286635639,25.68545098,80.23,80.197,2.3612744]
[1772286635839,25.68545098,80.24,80.197,2.3612744]
[1772286636033,25.68545098,80.24,80.2,25.68545098]
[1772286636215,25.68545098,80.23,80.201,12.46867246]
[1772286636415,25.68545098,80.23,80.197,2.3612744]
[1772286636416,12.46276748,80.239,80.198,12.46913888]
[1772286636623,25.68545098,80.24,80.201,2.3612744]
[1772286636934,25.68545098,80.26,80.211,2.3612744]
[1772286637430,25.68545098,80.25,80.211,2.3612744]
[1772286637745,0.28432314,80.26,80.211,2.3612744]
[1772286638040,25.68545098,80.25,80.211,2.3612744]
[1772286638227,0.28432314,80.244,80.191,2.3612744]
[1772286638431,25.68545098,80.24,80.201,2.3612744]
[1772286638740,12.46214623,80.243,80.211,2.3612744]
[1772286639318,25.68545098,80.26,80.22,25.68545098]
[1772286639633,62.2775986,80.286,80.211,2.3612744]
[1772286639634,25.68545098,80.25,80.211,2.3612744]
[1772286639827,25.68545098,80.27,80.23,25.68545098]
[1772286640228,12.4581096,80.269,80.23,25.68545098]
[1772286640545,12.457302,80.275,80.24,25.68545098]
[1772286640843,2.735451,80.294,80.25,25.68545098]
[1772286640844,25.68545098,80.29,80.25,25.68545098]
[1772286641049,25.68545098,80.29,80.241,2.68284715]
[1772286641217,25.68545098,80.29,80.25,25.68545098]
[1772286641416,25.68545098,80.29,80.241,2.68284715]
[1772286641627,25.68545098,80.29,80.25,25.68545098]
[1772286642041,12.45438581,80.293,80.26,25.68545098]
[1772286642224,12.45500628,80.289,80.252,12.46074864]
[1772286642423,25.68545098,80.29,80.253,2.68284715]
[1772286642633,25.68545098,80.29,80.25,38.1464538]
[1772286642926,25.68545098,80.29,80.251,2.68284715]
[1772286643325,25.91388504,80.29,80.251,2.68284715]
[1772286644319,12.45500628,80.289,80.251,2.68284715]
[1772286644519,25.91388504,80.3,80.261,2.85749914]
[1772286645218,25.91388504,80.3,80.251,43.61316369]
[1772286645219,12.45143938,80.312,80.27,28.77138418]
[1772286645425,25.91388504,80.31,80.27,28.77138418]
[1772286645629,25.91388504,80.32,80.281,2.85749914]
[1772286646438,25.91388504,80.31,80.283,2.85749914]
[1772286646640,43.57623974,80.319,80.283,2.85749914]
[1772286646835,43.57623974,80.319,80.254,3.69383402]
[1772286646836,2.71568982,80.299,80.243,2.85749914]
[1772286647140,25.91388504,80.28,80.245,2.85749914]
[1772286647346,43.57623974,80.319,80.22,25.91388504]
[1772286647347,2.71568982,80.269,80.22,25.91388504]
[1772286647545,25.91388504,80.26,80.221,2.85749914]
[1772286647842,0.28432314,80.281,80.221,2.85749914]
[1772286648020,25.91388504,80.28,80.241,2.85749914]
[1772286648225,2.71568982,80.307,80.251,2.85749914]
[1772286648424,12.45345521,80.299,80.253,2.85749914]
[1772286648744,25.91388504,80.31,80.26,25.91388504]
[1772286649053,25.91388504,80.31,80.261,2.85749914]
[1772286649346,25.91388504,80.31,80.27,25.91388504]
[1772286649850,25.91388504,80.31,80.261,2.85749914]
[1772286650152,0.1,80.36,80.27,25.91388504]
[1772286650454,0.1,80.36,80.252,43.61262024]
[1772286650455,0.1,80.36,80.33,25.91388504]
[1772286650632,12.44415684,80.359,80.33,25.91388504]
[1772286650832,12.44415684,80.359,80.323,2.85749914]
[1772286651145,2.71568982,80.381,80.322,12.44988919]
[1772286651146,2.71568982,80.396,80.341,2.85749914]
[1772286651351,2.71568982,80.396,80.35,25.91388504]
[1772286651525,0.1,80.41,80.38,25.91388504]
[1772286651927,0.1,80.41,80.376,2.85749914]
[1772286651928,12.42999616,80.451,80.4,25.91388504]
[1772286652132,12.42999616,80.451,80.39,25.91388504]
[1772286652133,25.91388504,80.43,80.39,25.91388504]
[1772286652349,25.91388504,80.46,80.411,15.29360862]
[1772286652643,49.67594125,80.522,80.399,12.43782219]
[1772286652644,25.91388504,80.44,80.399,12.43782219]
[1772286652845,2.71568982,80.425,80.379,2.85749914]
[1772286653022,25.91388504,80.42,80.379,2.85749914]
[1772286653226,3.69383402,80.47,80.361,43.55346497]
[1772286653227,12.42783905,80.465,80.411,2.85749914]
[1772286653439,12.42783905,80.465,80.421,2.85749914]
[1772286653647,2.71568982,80.507,80.451,2.85749914]
[1772286653825,3.79383402,80.52,80.42,2.85749914]
[1772286653826,25.91388504,80.47,80.42,2.85749914]
[1772286654033,28.62957486,80.48,80.431,2.85749914]
[1772286654277,25.91388504,80.46,80.42,25.91388504]
[1772286654551,25.91388504,80.44,80.4,2.85749914]
[1772286654736,25.91388504,80.42,80.385,2.85749914]
[1772286655242,25.91388504,80.41,80.385,2.85749914]
[1772286655949,105.64386829,80.459,80.364,87.20834784]
[1772286655950,2.71568982,80.453,80.391,2.85749914]
[1772286656249,25.91388504,80.44,80.4,25.91388504]
[1772286656450,43.50041635,80.459,80.41,25.91388504]
[1772286656766,12.42869038,80.459,80.411,12.43610948]
[1772286656950,25.91388504,80.45,80.401,2.85749914]
[1772286657448,25.91388504,80.45,80.4,25.91388504]
[1772286657449,2.71568982,80.409,80.358,2.85749914]
[1772286657647,25.91388504,80.41,80.361,2.85749914]
[1772286657946,25.91388504,80.43,80.381,2.85749914]
[1772286658152,25.91388504,80.43,80.364,3.69383402]
[1772286658153,25.91388504,80.42,80.364,2.85749914]
[1772286658353,12.42869038,80.459,80.359,43.55454895]
[1772286658354,25.91388504,80.44,80.391,2.85749914]
[1772286658539,25.91388504,80.44,80.402,2.85749914]
[1772286658851,25.91388504,80.44,80.391,12.43920339]
[1772286659150,12.43085337,80.445,80.401,2.85749914]
[1772286659552,12.4302353,80.449,80.41,25.91388504]
[1772286660149,43.50582356,80.449,80.41,25.91388504]
[1772286660347,25.91388504,80.43,80.386,2.85749914]
[1772286660550,25.91388504,80.41,80.362,2.85749914]
[1772286660748,12.43331907,80.43,80.352,2.85749914]
[1772286660749,25.91388504,80.39,80.352,2.85749914]
[1772286660938,25.91388504,80.37,80.338,2.85749914]
[1772286661139,0.28432314,80.41,80.351,2.85749914]
[1772286661349,25.91388504,80.39,80.351,2.85749914]
[1772286661855,0.28432314,80.383,80.323,12.44973419]
[1772286662053,0.28432314,80.383,80.32,25.91388504]
[1772286662054,25.91388504,80.36,80.32,25.91388504]
[1772286662242,25.91388504,80.35,80.311,2.85749914]
[1772286662441,25.91388504,80.34,80.304,3.69383402]
[1772286662640,62.1766168,80.399,80.304,3.69383402]
[1772286662641,12.44198922,80.373,80.321,2.85749914]
[1772286662854,12.43982235,80.387,80.35,25.91388504]
[1772286663059,38.3518414,80.4,80.361,2.85749914]
[1772286663259,49.71618658,80.457,80.305,43.58383661]
[1772286663260,25.91388504,80.41,80.37,25.91388504]
[1772286663450,25.91388504,80.42,80.38,25.91388504]
[1772286663643,28.62957486,80.43,80.38,25.91388504]
[1772286663844,25.91388504,80.42,80.38,25.91388504]
[1772286664277,28.62957486,80.43,80.39,25.91388504]
[1772286664563,62.4523106,80.481,80.39,25.91388504]
[1772286664564,12.4317806,80.439,80.391,12.43920339]
[1772286664770,25.91388504,80.43,80.38,28.77138418]
[1772286664953,25.91388504,80.43,80.382,2.85749914]
[1772286665140,25.91388504,80.43,80.39,25.91388504]
[1772286665551,25.91388504,80.41,80.367,2.85749914]
[1772286665752,25.91388504,80.41,80.368,12.44276328]
[1772286665949,25.91388504,80.42,80.381,2.85749914]
[1772286666170,25.91388504,80.43,80.381,2.85749914]
[1772286666363,25.91388504,80.43,80.39,25.91388504]
[1772286666555,12.43332628,80.429,80.391,12.43920339]
[1772286666750,43.51664199,80.429,80.39,25.91388504]
[1772286666979,12.43237516,80.436,80.4,25.91388504]
[1772286667165,25.91388504,80.43,80.384,2.85749914]
[1772286667374,25.91388504,80.41,80.361,2.85749914]
[1772286667571,43.50528277,80.45,80.324,12.4495792]
[1772286667572,25.91388504,80.4,80.355,2.85749914]
[1772286667775,25.91388504,80.4,80.324,43.57352721]
[1772286667776,25.91388504,80.39,80.341,2.85749914]
[1772286668081,25.91388504,80.37,80.325,2.85749914]
[1772286668286,2.71568982,80.385,80.34,25.91388504]
[1772286668287,25.91388504,80.38,80.34,25.91388504]
[1772286668457,43.54371165,80.379,80.341,2.85749914]
[1772286668874,43.54371165,80.379,80.35,25.91388504]
[1772286668875,12.44106047,80.379,80.35,25.91388504]
[1772286669087,25.91388504,80.39,80.337,2.85749914]
[1772286669377,25.91388504,80.45,80.384,2.85749914]
[1772286669568,25.91388504,80.44,80.4,25.91388504]
[1772286669768,25.91388504,80.45,80.41,25.91388504]
[1772286669966,2.71568982,80.46,80.4,2.85749914]
[1772286670172,25.91388504,80.46,80.411,2.85749914]
[1772286670472,12.4302353,80.449,80.42,2.85749914]
[1772286670672,12.4302353,80.449,80.41,25.91388504]
[1772286670673,2.75827919,80.448,80.384,3.69383402]
[1772286670871,25.91388504,80.44,80.391,3.0143391]
[1772286671070,25.91388504,80.44,80.401,3.0143391]
[1772286671265,2.75827919,80.448,80.356,66.40008008]
[1772286671266,0.0668962,80.415,80.356,3.69383402]
[1772286671470,25.91388504,80.39,80.353,3.0143391]
[1772286672171,25.91388504,80.38,80.281,12.45624743]
[1772286672472,43.54371165,80.379,80.33,25.91388504]
[1772286672677,12.44106047,80.379,80.34,25.91388504]
[1772286672881,43.54371165,80.379,80.34,25.91388504]
[1772286673391,25.91388504,80.4,80.36,25.91388504]
[1772286673557,12.43440849,80.422,80.39,25.91388504]
[1772286673757,12.43440849,80.422,80.355,0.14216157]
[1772286673758,12.4317806,80.439,80.4,25.91388504]
[1772286674060,12.4317806,80.439,80.325,62.45807453]
[1772286674061,12.4302353,80.449,80.42,25.91388504]
[1772286674363,25.91388504,80.46,80.42,25.91388504]
[1772286674860,25.91388504,80.46,80.42,28.92822414]
[1772286675177,25.91388504,80.46,80.42,3.0143391]
[1772286675382,25.91388504,80.46,80.42,28.92822414]
[1772286675680,12.42714585,80.469,80.431,3.0143391]
[1772286675888,12.42405794,80.489,80.45,25.91388504]
[1772286676383,12.42405794,80.489,80.424,3.69383402]
[1772286676384,25.91388504,80.48,80.422,3.0143391]
[1772286676579,12.4256017,80.479,80.441,12.43147151]
[1772286676806,12.4256017,80.479,80.441,3.0143391]
[1772286677166,12.4256017,80.479,80.442,3.0143391]
[1772286677685,12.41942895,80.519,80.471,3.0143391]
[1772286677888,12.41634487,80.539,80.51,25.91388504]
[1772286678080,0.1,80.54,80.51,25.91388504]
[1772286678280,0.1,80.54,80.499,3.0143391]
[1772286678481,2.75827919,80.577,80.53,25.91388504]
[1772286678683,2.75827919,80.577,80.465,62.78176312]
[1772286678684,12.40710182,80.599,80.56,25.91388504]
[1772286678886,28.67216423,80.57,80.517,3.0143391]
[1772286679065,2.75827919,80.569,80.502,3.0143391]
[1772286679264,6.48818264,80.598,80.49,25.91388504]
[1772286679265,25.91388504,80.54,80.49,25.91388504]
[1772286679488,25.91388504,80.54,80.491,3.0143391]
[1772286679792,25.91388504,80.52,80.47,25.91388504]
[1772286680095,3.69383402,80.58,80.454,43.50305929]
[1772286680096,25.91388504,80.54,80.5,25.91388504]
[1772286680273,25.91388504,80.55,80.51,25.91388504]
[1772286680485,25.91388504,80.54,80.5,25.91388504]
[1772286680682,12.41634487,80.539,80.5,25.91388504]
[1772286680883,43.45720706,80.539,80.5,25.91388504]
[1772286681285,5.36086188,80.582,80.483,12.42487166]
[1772286681286,12.41541898,80.546,80.51,25.91388504]
[1772286681697,2.75827919,80.564,80.508,3.0143391]
[1772286681901,25.91388504,80.56,80.51,25.91388504]
[1772286682084,25.91388504,80.55,80.508,3.0143391]
[1772286682400,2.75827919,80.56,80.483,47.18116607]
[1772286682401,2.75827919,80.611,80.54,25.91388504]
[1772286682605,2.75827919,80.611,80.57,25.91388504]
[1772286682804,2.75827919,80.599,80.524,43.7496254]
[1772286683099,12.40540875,80.61,80.58,25.91388504]
[1772286683273,12.40446363,80.617,80.58,25.91388504]
[1772286683474,12.40446363,80.617,80.59,25.91388504]
[1772286683679,12.40446363,80.617,80.58,25.91388504]
[1772286683892,2.75827919,80.624,80.524,43.46530226]
[1772286684087,2.75827919,80.619,80.553,3.69383402]
[1772286684316,25.91388504,80.6,80.55,25.91388504]
[1772286684596,12.40710182,80.599,80.56,25.91388504]
[1772286684781,2.75827919,80.619,80.57,25.91388504]
[1772286684782,12.40417772,80.618,80.57,25.91388504]
[1772286684977,56.06449847,80.676,80.59,3.0143391]
[1772286684978,15.15753523,80.65,80.59,3.0143391]
[1772286685283,6.48299352,80.676,80.551,105.52320889]
[1772286685284,2.75827919,80.675,80.63,25.91388504]
[1772286685488,2.75827919,80.671,80.64,25.91388504]
[1772286685787,43.37373286,80.694,80.61,25.91388504]
[1772286685788,2.75827919,80.659,80.61,25.91388504]
[1772286686084,2.75827919,80.649,80.594,3.69383402]
[1772286686289,2.75827919,80.629,80.581,3.0143391]
[1772286686593,12.40248545,80.629,80.59,25.91388504]
[1772286687090,25.91388504,80.61,80.567,12.41202973]
[1772286687395,25.91388504,80.61,80.56,25.91388504]
[1772286687602,25.91388504,80.61,80.561,3.0143391]
[1772286688495,2.75827919,80.599,80.542,3.0143391]
[1772286688798,25.91388504,80.59,80.55,25.91388504]
[1772286689186,2.75827919,80.598,80.55,25.91388504]
[1772286689396,2.75827919,80.598,80.56,25.91388504]
[1772286689783,2.75827919,80.579,80.534,12.41711575]
[1772286689982,25.91388504,80.56,80.52,25.91388504]
[1772286690182,25.91388504,80.56,80.515,12.41991866]
[1772286690378,2.75827919,80.569,80.521,3.0143391]
[1772286690606,105.4407423,80.614,80.471,3.0143391]
[1772286690607,12.41804092,80.528,80.471,3.0143391]
[1772286690787,25.91388504,80.52,80.471,3.0143391]
[1772286690986,12.41804092,80.528,80.471,3.0143391]
[1772286691186,25.91388504,80.5,80.463,6.70817312]
[1772286691581,25.91388504,80.5,80.454,12.42945957]
[1772286691845,25.91388504,80.51,80.461,3.0143391]
[1772286692112,43.46314324,80.528,80.446,3.0143391]
[1772286692113,28.67216423,80.5,80.446,3.0143391]
[1772286692283,25.91388504,80.47,80.42,25.91388504]
[1772286692483,2.75827919,80.479,80.44,25.91388504]
[1772286692688,2.75827919,80.479,80.422,12.43440849]
[1772286692689,12.42714585,80.469,80.422,12.43440849]
[1772286692884,2.75827919,80.459,80.407,12.43672814]
[1772286693104,2.75827919,80.472,80.43,25.91388504]
[1772286693403,2.75827919,80.472,80.407,43.5285485]
[1772286693404,25.91388504,80.48,80.44,25.91388504]
[1772286693714,2.75827919,80.479,80.44,25.91388504]
[1772286694200,2.75827919,80.507,80.46,25.91388504]
[1772286694385,2.75827919,80.507,80.47,25.91388504]
[1772286694586,12.41942895,80.519,80.48,25.91388504]
[1772286694790,2.75827919,80.518,80.48,25.91388504]
[1772286695299,2.75827919,80.509,80.46,25.91388504]
[1772286695593,25.91388504,80.5,80.46,25.91388504]
[1772286695794,2.75827919,80.519,80.461,3.0143391]
[1772286695985,25.91388504,80.51,80.461,3.0143391]
[1772286696185,28.67216423,80.51,80.461,3.0143391]
[1772286696392,2.75827919,80.509,80.461,3.0143391]
[1772286696585,2.75827919,80.509,80.47,25.91388504]
[1772286696802,2.75827919,80.547,80.473,3.0143391]
[1772286697115,2.75827919,80.499,80.45,25.91388504]
[1772286697310,2.75827919,80.489,80.445,12.43085337]
[1772286697603,2.75827919,80.489,80.429,3.0143391]
[1772286697604,25.91388504,80.46,80.413,3.0143391]
[1772286698105,25.91388504,80.47,80.421,3.0143391]
[1772286698299,25.91388504,80.47,80.363,5.36086188]
[1772286698300,25.91388504,80.45,80.407,12.43657516]
[1772286698501,25.91388504,80.45,80.4,38.35157837]
[1772286698502,2.75827919,80.449,80.4,38.35157837]
[1772286698701,25.91388504,80.45,80.411,12.43610948]
[1772286698910,2.75827919,80.478,80.421,3.0143391]
[1772286699084,12.42513854,80.482,80.421,3.0143391]
[1772286699085,25.91388504,80.46,80.421,3.0143391]
[1772286699504,25.91388504,80.46,80.42,25.91388504]
[1772286699722,25.91388504,80.45,80.405,15.45135536]
[1772286699998,2.75827919,80.466,80.42,25.91388504]
[1772286700212,25.91388504,80.47,80.43,25.91388504]
[1772286700588,3.03452017,80.479,80.43,25.91388504]
[1772286700784,25.91388504,80.47,80.425,12.43394466]
[1772286701201,25.91388504,80.47,80.43,25.91388504]
[1772286701508,3.03452017,80.449,80.4,25.91388504]
[1772286701724,25.91388504,80.44,80.392,3.22667907]
[1772286701887,3.03452017,80.449,80.4,29.14056411]
[1772286702088,3.03452017,80.439,80.39,25.91388504]
[1772286702296,25.91388504,80.43,80.384,15.66696569]
[1772286702490,3.03452017,80.458,80.4,3.22667907]
[1772286702697,3.03452017,80.458,80.41,25.91388504]
[1772286702902,3.03452017,80.458,80.42,25.91388504]
[1772286703102,5.36086188,80.512,80.411,43.52638319]
[1772286703103,3.03452017,80.472,80.415,3.22667907]
[1772286703305,3.03452017,80.472,80.44,25.91388504]
[1772286703504,3.03452017,80.488,80.44,25.91388504]
[1772286703704,25.91388504,80.48,80.429,3.22667907]
[1772286703889,25.91388504,80.48,80.414,3.69383402]
[1772286703890,3.0633796,80.505,80.47,25.91388504]
[1772286704091,15.48500451,80.505,80.47,25.91388504]
[1772286704388,15.48500451,80.505,80.413,5.36086188]
[1772286704389,12.41927471,80.52,80.49,25.91388504]
[1772286704603,3.0633796,80.521,80.49,25.91388504]
[1772286704802,12.41927471,80.52,80.49,25.91388504]
[1772286705084,12.41927471,80.52,80.481,12.42529292]
[1772286705288,38.18251916,80.52,80.481,12.42529292]
[1772286705493,3.0633796,80.539,80.49,25.76324445]
[1772286705909,3.0633796,80.539,80.482,3.31803057]
[1772286706102,3.0633796,80.553,80.51,25.76324445]
[1772286706300,3.0633796,80.553,80.496,3.31803057]
[1772286706301,3.0633796,80.553,80.52,25.76324445]
[1772286706497,62.04484718,80.587,80.52,25.76324445]
[1772286706498,12.41244724,80.565,80.52,25.76324445]
[1772286706696,25.76324445,80.56,80.51,25.76324445]
[1772286706899,25.76324445,80.56,80.509,3.31803057]
[1772286706900,3.0633796,80.558,80.52,25.76324445]
[1772286707604,25.76324445,80.56,80.511,3.31803057]
[1772286707906,25.76324445,80.57,80.52,25.76324445]
[1772286708108,3.0633796,80.569,80.53,25.76324445]
[1772286708311,15.47276955,80.585,80.55,25.76324445]
[1772286708610,3.0633796,80.559,80.51,25.76324445]
[1772286708792,3.0633796,80.559,80.511,12.42066301]
[1772286708996,3.0633796,80.615,80.551,3.31803057]
[1772286709194,28.82662405,80.61,80.57,25.76324445]
[1772286709507,28.82662405,80.59,80.55,25.76324445]
[1772286709713,3.0633796,80.589,80.542,3.31803057]
[1772286710413,25.76324445,80.55,80.51,25.76324445]
[1772286710597,25.76324445,80.56,80.52,29.08127502]
[1772286710796,25.76324445,80.57,80.53,25.76324445]
[1772286710995,12.41064336,80.576,80.51,25.76324445]
[1772286710996,25.76324445,80.55,80.51,25.76324445]
[1772286711220,25.76324445,80.54,80.508,12.42109424]
[1772286711514,3.0633796,80.558,80.51,25.76324445]
[1772286711712,3.0633796,80.558,80.508,12.42109424]
[1772286711713,3.0633796,80.558,80.52,25.76324445]
[1772286712010,3.0633796,80.569,80.53,25.76324445]
[1772286712196,25.76324445,80.56,80.52,25.76324445]
[1772286712800,25.76324445,80.54,80.5,25.76324445]
[1772286713013,12.41221464,80.566,80.52,25.76324445]
[1772286713214,25.76324445,80.55,80.511,3.31803057]
[1772286713414,25.76324445,80.57,80.53,25.76324445]
[1772286713605,25.76324445,80.56,80.521,3.31803057]
[1772286714111,3.0633796,80.559,80.52,25.76324445]
[1772286714294,3.0633796,80.539,80.5,25.76324445]
[1772286714499,43.43940822,80.572,80.46,62.60154594]
[1772286714500,3.0633796,80.511,80.46,3.31803057]
[1772286714697,3.0633796,80.525,80.48,25.76324445]
[1772286714917,25.76324445,80.52,80.481,12.42529292]
[1772286715313,3.0633796,80.509,80.461,3.31803057]
[1772286715514,43.46483662,80.525,80.47,29.08127502]
[1772286715515,3.0633796,80.523,80.47,29.08127502]
[1772286715713,25.76324445,80.53,80.49,25.76324445]
[1772286716011,12.41141353,80.571,80.46,25.76324445]
[1772286716012,25.76324445,80.5,80.46,25.76324445]
[1772286716409,3.0633796,80.509,80.47,25.76324445]
[1772286716619,3.0633796,80.509,80.448,43.50636435]
[1772286716620,3.0633796,80.529,80.49,25.76324445]
[1772286716808,12.41942895,80.519,80.48,25.76324445]
[1772286717116,12.41942895,80.519,80.475,12.4261492]
[1772286717117,3.0633796,80.518,80.475,12.4261492]
[1772286717320,3.0633796,80.518,80.49,25.76324445]
[1772286717493,25.76324445,80.56,80.511,3.31803057]
[1772286717696,3.0633796,80.549,80.51,25.76324445]
[1772286717893,3.0633796,80.539,80.5,25.76324445]
[1772286718113,25.76324445,80.53,80.49,25.76324445]
[1772286718313,25.76324445,80.51,80.475,12.4261492]
[1772286718624,25.76324445,80.49,80.462,12.42816879]
[1772286718799,25.76324445,80.5,80.462,12.42816879]
[1772286719315,12.41788672,80.529,80.462,12.42816879]
[1772286719616,25.76324445,80.52,80.48,25.76324445]
[1772286719915,3.0633796,80.53,80.48,25.76324445]
[1772286720112,3.0633796,80.53,80.471,3.31803057]
[1772286720113,12.41788672,80.529,80.49,25.76324445]
[1772286720312,3.0633796,80.542,80.51,25.76324445]
[1772286720499,49.61165721,80.627,80.472,3.69383402]
[1772286720500,3.0633796,80.529,80.48,25.76324445]
[1772286720813,3.0633796,80.489,80.417,3.31803057]
[1772286721013,3.0633796,80.483,80.44,25.76324445]
[1772286721206,25.76324445,80.46,80.421,12.43456311]
[1772286721401,25.76324445,80.48,80.44,25.76324445]
[1772286721604,25.76324445,80.49,80.45,25.76324445]
[1772286721801,25.76324445,80.48,80.44,25.76324445]
[1772286722117,3.0633796,80.499,80.46,25.76324445]
[1772286722500,3.0633796,80.489,80.44,25.76324445]
[1772286722701,3.0633796,80.479,80.44,25.76324445]
[1772286722910,12.4257561,80.478,80.44,38.19479892]
[1772286723108,3.0633796,80.469,80.426,12.43379006]
[1772286723308,3.0633796,80.469,80.43,25.76324445]
[1772286723512,25.76324445,80.48,80.44,25.76324445]
[1772286723713,12.4256017,80.479,80.43,25.76324445]
[1772286724105,15.4889813,80.479,80.43,25.76324445]
[1772286724304,3.0633796,80.478,80.43,25.76324445]
[1772286724914,3.0633796,80.478,80.44,25.76324445]
[1772286725124,3.0633796,80.494,80.46,25.76324445]
[1772286725506,3.0633796,80.519,80.47,25.76324445]
[1772286725704,3.0633796,80.533,80.478,3.31803057]
[1772286725922,28.82662405,80.52,80.48,25.76324445]
[1772286726131,28.82662405,80.55,80.51,25.76324445]
[1772286726622,3.0633796,80.55,80.52,25.76324445]
[1772286726827,3.0633796,80.585,80.54,25.76324445]
[1772286727123,3.0633796,80.585,80.56,25.76324445]
[1772286727327,3.0633796,80.585,80.551,12.41449516]
[1772286727620,3.0633796,80.584,80.55,25.76324445]
[1772286727802,3.0633796,80.589,80.55,25.76324445]
[1772286728221,3.0633796,80.599,80.56,25.76324445]
[1772286729120,3.0633796,80.597,80.55,25.76324445]
[1772286729322,3.0633796,80.59,80.55,25.76324445]
[1772286729520,3.0633796,80.599,80.56,25.76324445]
[1772286729730,3.0633796,80.589,80.539,12.41634487]
[1772286729908,3.0633796,80.589,80.55,25.76324445]
[1772286730411,25.76324445,80.57,80.53,25.76324445]
[1772286730710,3.15254135,80.569,80.53,25.76324445]
[1772286730909,25.76324445,80.59,80.55,25.76324445]
[1772286731118,12.4074097,80.597,80.56,25.76324445]
[1772286731316,3.15254135,80.596,80.55,16.49183323]
[1772286731540,3.15254135,80.569,80.522,3.1895803]
[1772286731708,3.15254135,80.579,80.54,16.49183323]
[1772286731907,3.15254135,80.559,80.52,16.49183323]
[1772286732413,3.15254135,80.539,80.493,3.1895803]
[1772286732618,3.15254135,80.539,80.5,16.49183323]
[1772286732921,3.15254135,80.539,80.495,12.42310515]